{"text_format":"3","workbook":"xlsx","n_sheets":2,"sheets":["Інструкції","Реєстр ризиків"],"not_rendered":{"images":1,"defined_names":2,"comments":1},"read":"whole","date_system":"1900"}

{"sheet":"Інструкції","index":0,"n_rows":53,"n_cols":6,"rows_kept":53,"merged":[[1,0,9,16],[12,2,12,16],[13,3,13,15],[15,5,15,16],[16,5,16,16],[17,5,17,16],[18,5,18,16],[19,5,19,16],[20,3,20,4],[20,5,20,16],[21,3,21,4],[21,5,21,16],[22,5,22,16],[24,2,24,16],[25,2,25,16],[27,5,27,10],[28,5,28,10],[29,5,29,10],[30,5,30,10],[31,5,31,10],[52,2,52,10]]}
["ІНСТРУКЦІЇ ТА ОСНОВНІ ВИЗНАЧЕННЯ"]
["Управління ризиками та їх моніторинг є важливими для Кімонікс. Кімонікс працює у складному середовищі, і управління ризиками, припущеннями, критичними рішеннями, проблемами та новими можливостями є важливим і таким, що ми всі робимо щодня. Враховуючи характер нашої роботи, існує висока імовірність ризику, але це не означає, що ми приймаємо ризиковані рішення, які можуть негативно вплинути на наших співробітників або наші кошти. Усвідомлення ризиків означає прийняття відповідного рівня ризику для досягнення наших запланованих цілей. На жаль, універсального посібника не існує, але є підходи, які покращують управління ризиками, та інструменти, які допомагають у цьому. Це лише один із них.\n\nУправління ризиками не є складним. Принципи полягають у наступному:\n• Мислити логічно\n• Визначати ключові ризики\n• Визначати дії щодо кожного ризику: зменшувати, перенаправляти, приймати, уникати\n• Визначати особу, відповідальну за дії\n• Фіксувати ризики та зміни в ризиках\n• Відслідковувати та навчатися"]
{"$rows_empty":9}
["ЯК ЗАПОВНЮВАТИ ВКЛАДКУ ІЗ РИЗИКАМИ"]
[null,1,"Використовуючи наведені нижче визначення категорій, почніть заповнювати та класифікувати програмні ризики. "]
[{"$nulls":3},"Для отримання додаткової інформації зверніться до Операційної структури реалізації програм МЗС СК"]
[{"$nulls":3},"Визначення категорій"]
[{"$nulls":3},"Context / Контекстні",null,"Зміни в операційному середовищі, які можуть вплинути на реалізацію програм. Ризики, які слід враховувати, включають політичні події, економічну ситуацію та інші фактори навколишнього середовища."]
[{"$nulls":3},"Delivery / Реалізаційні",null,"Фактори, що впливають на ланцюг постачання або реалізацію проєкту, включаючи ті, що пов'язані з субпідрядниками та іншими учасниками ланцюга поставок, а також ризики, пов'язані з нашими бенефіціарами."]
[{"$nulls":3},"Operational / Операційні",null,"Стосується власної спроможності та можливостей Кімонікс управляти програмою. (Включає питання людських ресурсів та інших питань спроможності, юридичних питань та питань комплаєнсу)."]
[{"$nulls":3},"Fiduciary / Фідуціарні",null,"Ризик того, що кошти, довірені Кімоніксом грантеру або третім сторонам для надання допомоги, не використовуються за призначенням та/або не можуть бути належним чином враховані."]
[{"$nulls":3},"Reputational / Репутаційні",null,"Ризик того, що дії або заходи негативно вплинуть на сприйняття компанії Кімонікс, грантера або програми."]
[{"$nulls":3},"Safeguarding and Inclusion / Захисту та інклюзії",null,"Ризик заподіяння ненавмисної шкоди. Важливим аспектом роботи з ризиками є «уникнення заподіяння шкоди». Ризики, які слід враховувати, включають ті, що впливають на соціальну ізоляцію, сексуальну експлуатацію, насильство та домагання."]
[{"$nulls":3},"Environmental / Екологічні",null,"Ризик негативного впливу на навколишнє середовище або на те, як люди використовують навколишнє середовище; ризик впливу на проект умов навколишнього середовища"]
[{"$nulls":3},"Security / Безпекові",null,"Фактори, що впливають на безпеку та захист персоналу та майна грантера та наших партнерів. "]
[]
[null,2,"Для кожного ризику перед Заходами пом'якшення додайте початковий бал ймовірності від 1 до 5 та бал впливу від 1 до 5. Дивіться роз'яснення до визначення та оцінювання нижче, щоб керуватися цим ранжуванням."]
[null,null,"Шаблон автоматично надасть загальний рівень ризику (1-25), який ви можете інтерпретувати за допомогою наведеного вище роз'яснення на чотири загальні рівні ризику (Мінімальний, Помірний, Значний, Серйозний)."]
[{"$nulls":3},"Вірогідність"]
[{"$nulls":3},1,"Рідко","Дуже низька імовірність цього; менше 10% (якщо імовірність дорівнює нулю, це не є ризиком і не має реєструватися)"]
[{"$nulls":3},2,"Малоймовірно","Низька імовірність; від 10 до 25%"]
[{"$nulls":3},3,"Можливо","Може статися в певний момент часу. Між 25 і 50%"]
[{"$nulls":3},4,"Імовірно","Імовірно, станеться (більш ніж імовірно); Між 50 і 70%"]
[{"$nulls":3},5,"Майже напевно","Очікується, що це станеться, майже напевно; більше ніж 70%"]
[]
[{"$nulls":3},"Вплив"]
[{"$nulls":3},1,"Незначний"]
[{"$nulls":3},2,"Мінімальний"]
[{"$nulls":3},3,"Помірний"]
[{"$nulls":3},4,"Значний"]
[{"$nulls":3},5,"Серйозний"]
{"$rows_empty":13}
[null,3,"Розгляньте заходи пом'якшення, які ми можемо вжити, щоб зменшити імовірність або вплив кожного ризику. Запишіть це у стовпчику «План заходів пом'якшення»."]

{"sheet":"Реєстр ризиків","index":1,"n_rows":49,"n_cols":13,"rows_kept":49}
["Програма","PFRU-2",{"$nulls":10},"CGUK #00029"]
["Назва Грантоотримувача"]
["Дата оцінки ризиків"]
["Номер","Категорія ризику","Опис ризику \n(опишіть що може статися)","Вірогідність","Вплив","Рівень ризику","План заходів пом'якшення"]
[1,"Context / Контекстні","ПРИКЛАД: Політична динаміка спричиняє зміну міністерських партнерів і потенційну втрату провідних прихильників реформ.","Рідко","Незначний",{"$f":"_xlfn.LET(\n  _xlpm.i, CHOOSE(MATCH(D5, {\"Рідко\",\"Малоймовірно\",\"Можливо\",\"Імовірно\",\"Майже напевно\"}, 0), 1,2,3,4,5),\n  _xlpm.l, CHOOSE(MATCH(E5, {\"Незначний\",\"Мінімальний\",\"Помірний\",\"Значний\",\"Серйозний\"}, 0), 1,2,3,4,5),\n  _xlpm.score, _xlpm.i * _xlpm.l,\n  IF(_xlpm.score<=4, \"Мінімальний\",\n     IF(_xlpm.score<=6, \"Помірний\",\n        IF(_xlpm.score<=12, \"Значний\", \"Серйозний\")\n     )\n  )\n)","v":"Мінімальний"},"Стратегія взаємодії, яка культивує відносини з усім спектром уряду та постійної державної служби. Використовуйте наш підхід до управління діяльністю, щоб посилювати відносини з установами, а не з окремими особами, де це можливо."]
["","","",null,null,{"$f":"_xlfn.LET(\n  _xlpm.i, CHOOSE(MATCH(D6, {\"Рідко\",\"Малоймовірно\",\"Можливо\",\"Імовірно\",\"Майже напевно\"}, 0), 1,2,3,4,5),\n  _xlpm.l, CHOOSE(MATCH(E6, {\"Незначний\",\"Мінімальний\",\"Помірний\",\"Значний\",\"Серйозний\"}, 0), 1,2,3,4,5),\n  _xlpm.score, _xlpm.i * _xlpm.l,\n  IF(_xlpm.score<=4, \"Мінімальний\",\n     IF(_xlpm.score<=6, \"Помірний\",\n        IF(_xlpm.score<=12, \"Значний\", \"Серйозний\")\n     )\n  )\n)","v":{"$error":"#N/A"}},""]
["","","",null,null,{"$f":"_xlfn.LET(\n  _xlpm.i, CHOOSE(MATCH(D7, {\"Рідко\",\"Малоймовірно\",\"Можливо\",\"Імовірно\",\"Майже напевно\"}, 0), 1,2,3,4,5),\n  _xlpm.l, CHOOSE(MATCH(E7, {\"Незначний\",\"Мінімальний\",\"Помірний\",\"Значний\",\"Серйозний\"}, 0), 1,2,3,4,5),\n  _xlpm.score, _xlpm.i * _xlpm.l,\n  IF(_xlpm.score<=4, \"Мінімальний\",\n     IF(_xlpm.score<=6, \"Помірний\",\n        IF(_xlpm.score<=12, \"Значний\", \"Серйозний\")\n     )\n  )\n)","v":{"$error":"#N/A"}},""]
["","","",null,null,{"$f":"_xlfn.LET(\n  _xlpm.i, CHOOSE(MATCH(D8, {\"Рідко\",\"Малоймовірно\",\"Можливо\",\"Імовірно\",\"Майже напевно\"}, 0), 1,2,3,4,5),\n  _xlpm.l, CHOOSE(MATCH(E8, {\"Незначний\",\"Мінімальний\",\"Помірний\",\"Значний\",\"Серйозний\"}, 0), 1,2,3,4,5),\n  _xlpm.score, _xlpm.i * _xlpm.l,\n  IF(_xlpm.score<=4, \"Мінімальний\",\n     IF(_xlpm.score<=6, \"Помірний\",\n        IF(_xlpm.score<=12, \"Значний\", \"Серйозний\")\n     )\n  )\n)","v":{"$error":"#N/A"}},""]
["","","",null,null,{"$f":"_xlfn.LET(\n  _xlpm.i, CHOOSE(MATCH(D9, {\"Рідко\",\"Малоймовірно\",\"Можливо\",\"Імовірно\",\"Майже напевно\"}, 0), 1,2,3,4,5),\n  _xlpm.l, CHOOSE(MATCH(E9, {\"Незначний\",\"Мінімальний\",\"Помірний\",\"Значний\",\"Серйозний\"}, 0), 1,2,3,4,5),\n  _xlpm.score, _xlpm.i * _xlpm.l,\n  IF(_xlpm.score<=4, \"Мінімальний\",\n     IF(_xlpm.score<=6, \"Помірний\",\n        IF(_xlpm.score<=12, \"Значний\", \"Серйозний\")\n     )\n  )\n)","v":{"$error":"#N/A"}},""]
["","","",null,null,{"$f":"_xlfn.LET(\n  _xlpm.i, CHOOSE(MATCH(D10, {\"Рідко\",\"Малоймовірно\",\"Можливо\",\"Імовірно\",\"Майже напевно\"}, 0), 1,2,3,4,5),\n  _xlpm.l, CHOOSE(MATCH(E10, {\"Незначний\",\"Мінімальний\",\"Помірний\",\"Значний\",\"Серйозний\"}, 0), 1,2,3,4,5),\n  _xlpm.score, _xlpm.i * _xlpm.l,\n  IF(_xlpm.score<=4, \"Мінімальний\",\n     IF(_xlpm.score<=6, \"Помірний\",\n        IF(_xlpm.score<=12, \"Значний\", \"Серйозний\")\n     )\n  )\n)","v":{"$error":"#N/A"}}]
["","","",null,null,{"$f":"_xlfn.LET(\n  _xlpm.i, CHOOSE(MATCH(D11, {\"Рідко\",\"Малоймовірно\",\"Можливо\",\"Імовірно\",\"Майже напевно\"}, 0), 1,2,3,4,5),\n  _xlpm.l, CHOOSE(MATCH(E11, {\"Незначний\",\"Мінімальний\",\"Помірний\",\"Значний\",\"Серйозний\"}, 0), 1,2,3,4,5),\n  _xlpm.score, _xlpm.i * _xlpm.l,\n  IF(_xlpm.score<=4, \"Мінімальний\",\n     IF(_xlpm.score<=6, \"Помірний\",\n        IF(_xlpm.score<=12, \"Значний\", \"Серйозний\")\n     )\n  )\n)","v":{"$error":"#N/A"}},""]
["","","",null,null,{"$f":"_xlfn.LET(\n  _xlpm.i, CHOOSE(MATCH(D12, {\"Рідко\",\"Малоймовірно\",\"Можливо\",\"Імовірно\",\"Майже напевно\"}, 0), 1,2,3,4,5),\n  _xlpm.l, CHOOSE(MATCH(E12, {\"Незначний\",\"Мінімальний\",\"Помірний\",\"Значний\",\"Серйозний\"}, 0), 1,2,3,4,5),\n  _xlpm.score, _xlpm.i * _xlpm.l,\n  IF(_xlpm.score<=4, \"Мінімальний\",\n     IF(_xlpm.score<=6, \"Помірний\",\n        IF(_xlpm.score<=12, \"Значний\", \"Серйозний\")\n     )\n  )\n)","v":{"$error":"#N/A"}},""]
["","","",null,null,{"$f":"_xlfn.LET(\n  _xlpm.i, CHOOSE(MATCH(D13, {\"Рідко\",\"Малоймовірно\",\"Можливо\",\"Імовірно\",\"Майже напевно\"}, 0), 1,2,3,4,5),\n  _xlpm.l, CHOOSE(MATCH(E13, {\"Незначний\",\"Мінімальний\",\"Помірний\",\"Значний\",\"Серйозний\"}, 0), 1,2,3,4,5),\n  _xlpm.score, _xlpm.i * _xlpm.l,\n  IF(_xlpm.score<=4, \"Мінімальний\",\n     IF(_xlpm.score<=6, \"Помірний\",\n        IF(_xlpm.score<=12, \"Значний\", \"Серйозний\")\n     )\n  )\n)","v":{"$error":"#N/A"}},""]
["","","",null,null,{"$f":"_xlfn.LET(\n  _xlpm.i, CHOOSE(MATCH(D14, {\"Рідко\",\"Малоймовірно\",\"Можливо\",\"Імовірно\",\"Майже напевно\"}, 0), 1,2,3,4,5),\n  _xlpm.l, CHOOSE(MATCH(E14, {\"Незначний\",\"Мінімальний\",\"Помірний\",\"Значний\",\"Серйозний\"}, 0), 1,2,3,4,5),\n  _xlpm.score, _xlpm.i * _xlpm.l,\n  IF(_xlpm.score<=4, \"Мінімальний\",\n     IF(_xlpm.score<=6, \"Помірний\",\n        IF(_xlpm.score<=12, \"Значний\", \"Серйозний\")\n     )\n  )\n)","v":{"$error":"#N/A"}},""]
["","","",null,null,{"$f":"_xlfn.LET(\n  _xlpm.i, CHOOSE(MATCH(D15, {\"Рідко\",\"Малоймовірно\",\"Можливо\",\"Імовірно\",\"Майже напевно\"}, 0), 1,2,3,4,5),\n  _xlpm.l, CHOOSE(MATCH(E15, {\"Незначний\",\"Мінімальний\",\"Помірний\",\"Значний\",\"Серйозний\"}, 0), 1,2,3,4,5),\n  _xlpm.score, _xlpm.i * _xlpm.l,\n  IF(_xlpm.score<=4, \"Мінімальний\",\n     IF(_xlpm.score<=6, \"Помірний\",\n        IF(_xlpm.score<=12, \"Значний\", \"Серйозний\")\n     )\n  )\n)","v":{"$error":"#N/A"}},""]
["","","",null,null,{"$f":"_xlfn.LET(\n  _xlpm.i, CHOOSE(MATCH(D16, {\"Рідко\",\"Малоймовірно\",\"Можливо\",\"Імовірно\",\"Майже напевно\"}, 0), 1,2,3,4,5),\n  _xlpm.l, CHOOSE(MATCH(E16, {\"Незначний\",\"Мінімальний\",\"Помірний\",\"Значний\",\"Серйозний\"}, 0), 1,2,3,4,5),\n  _xlpm.score, _xlpm.i * _xlpm.l,\n  IF(_xlpm.score<=4, \"Мінімальний\",\n     IF(_xlpm.score<=6, \"Помірний\",\n        IF(_xlpm.score<=12, \"Значний\", \"Серйозний\")\n     )\n  )\n)","v":{"$error":"#N/A"}},""]
["","","",null,null,{"$f":"_xlfn.LET(\n  _xlpm.i, CHOOSE(MATCH(D17, {\"Рідко\",\"Малоймовірно\",\"Можливо\",\"Імовірно\",\"Майже напевно\"}, 0), 1,2,3,4,5),\n  _xlpm.l, CHOOSE(MATCH(E17, {\"Незначний\",\"Мінімальний\",\"Помірний\",\"Значний\",\"Серйозний\"}, 0), 1,2,3,4,5),\n  _xlpm.score, _xlpm.i * _xlpm.l,\n  IF(_xlpm.score<=4, \"Мінімальний\",\n     IF(_xlpm.score<=6, \"Помірний\",\n        IF(_xlpm.score<=12, \"Значний\", \"Серйозний\")\n     )\n  )\n)","v":{"$error":"#N/A"}},""]
["","","",null,null,{"$f":"_xlfn.LET(\n  _xlpm.i, CHOOSE(MATCH(D18, {\"Рідко\",\"Малоймовірно\",\"Можливо\",\"Імовірно\",\"Майже напевно\"}, 0), 1,2,3,4,5),\n  _xlpm.l, CHOOSE(MATCH(E18, {\"Незначний\",\"Мінімальний\",\"Помірний\",\"Значний\",\"Серйозний\"}, 0), 1,2,3,4,5),\n  _xlpm.score, _xlpm.i * _xlpm.l,\n  IF(_xlpm.score<=4, \"Мінімальний\",\n     IF(_xlpm.score<=6, \"Помірний\",\n        IF(_xlpm.score<=12, \"Значний\", \"Серйозний\")\n     )\n  )\n)","v":{"$error":"#N/A"}},""]
["","","",null,null,{"$f":"_xlfn.LET(\n  _xlpm.i, CHOOSE(MATCH(D19, {\"Рідко\",\"Малоймовірно\",\"Можливо\",\"Імовірно\",\"Майже напевно\"}, 0), 1,2,3,4,5),\n  _xlpm.l, CHOOSE(MATCH(E19, {\"Незначний\",\"Мінімальний\",\"Помірний\",\"Значний\",\"Серйозний\"}, 0), 1,2,3,4,5),\n  _xlpm.score, _xlpm.i * _xlpm.l,\n  IF(_xlpm.score<=4, \"Мінімальний\",\n     IF(_xlpm.score<=6, \"Помірний\",\n        IF(_xlpm.score<=12, \"Значний\", \"Серйозний\")\n     )\n  )\n)","v":{"$error":"#N/A"}},""]
["","","",null,null,{"$f":"_xlfn.LET(\n  _xlpm.i, CHOOSE(MATCH(D20, {\"Рідко\",\"Малоймовірно\",\"Можливо\",\"Імовірно\",\"Майже напевно\"}, 0), 1,2,3,4,5),\n  _xlpm.l, CHOOSE(MATCH(E20, {\"Незначний\",\"Мінімальний\",\"Помірний\",\"Значний\",\"Серйозний\"}, 0), 1,2,3,4,5),\n  _xlpm.score, _xlpm.i * _xlpm.l,\n  IF(_xlpm.score<=4, \"Мінімальний\",\n     IF(_xlpm.score<=6, \"Помірний\",\n        IF(_xlpm.score<=12, \"Значний\", \"Серйозний\")\n     )\n  )\n)","v":{"$error":"#N/A"}},""]
["","","",null,null,{"$f":"_xlfn.LET(\n  _xlpm.i, CHOOSE(MATCH(D21, {\"Рідко\",\"Малоймовірно\",\"Можливо\",\"Імовірно\",\"Майже напевно\"}, 0), 1,2,3,4,5),\n  _xlpm.l, CHOOSE(MATCH(E21, {\"Незначний\",\"Мінімальний\",\"Помірний\",\"Значний\",\"Серйозний\"}, 0), 1,2,3,4,5),\n  _xlpm.score, _xlpm.i * _xlpm.l,\n  IF(_xlpm.score<=4, \"Мінімальний\",\n     IF(_xlpm.score<=6, \"Помірний\",\n        IF(_xlpm.score<=12, \"Значний\", \"Серйозний\")\n     )\n  )\n)","v":{"$error":"#N/A"}},""]
["","","",null,null,{"$f":"_xlfn.LET(\n  _xlpm.i, CHOOSE(MATCH(D22, {\"Рідко\",\"Малоймовірно\",\"Можливо\",\"Імовірно\",\"Майже напевно\"}, 0), 1,2,3,4,5),\n  _xlpm.l, CHOOSE(MATCH(E22, {\"Незначний\",\"Мінімальний\",\"Помірний\",\"Значний\",\"Серйозний\"}, 0), 1,2,3,4,5),\n  _xlpm.score, _xlpm.i * _xlpm.l,\n  IF(_xlpm.score<=4, \"Мінімальний\",\n     IF(_xlpm.score<=6, \"Помірний\",\n        IF(_xlpm.score<=12, \"Значний\", \"Серйозний\")\n     )\n  )\n)","v":{"$error":"#N/A"}},""]
["","","",null,null,{"$f":"_xlfn.LET(\n  _xlpm.i, CHOOSE(MATCH(D23, {\"Рідко\",\"Малоймовірно\",\"Можливо\",\"Імовірно\",\"Майже напевно\"}, 0), 1,2,3,4,5),\n  _xlpm.l, CHOOSE(MATCH(E23, {\"Незначний\",\"Мінімальний\",\"Помірний\",\"Значний\",\"Серйозний\"}, 0), 1,2,3,4,5),\n  _xlpm.score, _xlpm.i * _xlpm.l,\n  IF(_xlpm.score<=4, \"Мінімальний\",\n     IF(_xlpm.score<=6, \"Помірний\",\n        IF(_xlpm.score<=12, \"Значний\", \"Серйозний\")\n     )\n  )\n)","v":{"$error":"#N/A"}},""]
["","","",null,null,{"$f":"_xlfn.LET(\n  _xlpm.i, CHOOSE(MATCH(D24, {\"Рідко\",\"Малоймовірно\",\"Можливо\",\"Імовірно\",\"Майже напевно\"}, 0), 1,2,3,4,5),\n  _xlpm.l, CHOOSE(MATCH(E24, {\"Незначний\",\"Мінімальний\",\"Помірний\",\"Значний\",\"Серйозний\"}, 0), 1,2,3,4,5),\n  _xlpm.score, _xlpm.i * _xlpm.l,\n  IF(_xlpm.score<=4, \"Мінімальний\",\n     IF(_xlpm.score<=6, \"Помірний\",\n        IF(_xlpm.score<=12, \"Значний\", \"Серйозний\")\n     )\n  )\n)","v":{"$error":"#N/A"}},""]
["","","",null,null,{"$f":"_xlfn.LET(\n  _xlpm.i, CHOOSE(MATCH(D25, {\"Рідко\",\"Малоймовірно\",\"Можливо\",\"Імовірно\",\"Майже напевно\"}, 0), 1,2,3,4,5),\n  _xlpm.l, CHOOSE(MATCH(E25, {\"Незначний\",\"Мінімальний\",\"Помірний\",\"Значний\",\"Серйозний\"}, 0), 1,2,3,4,5),\n  _xlpm.score, _xlpm.i * _xlpm.l,\n  IF(_xlpm.score<=4, \"Мінімальний\",\n     IF(_xlpm.score<=6, \"Помірний\",\n        IF(_xlpm.score<=12, \"Значний\", \"Серйозний\")\n     )\n  )\n)","v":{"$error":"#N/A"}},""]
["","","",null,null,{"$f":"_xlfn.LET(\n  _xlpm.i, CHOOSE(MATCH(D26, {\"Рідко\",\"Малоймовірно\",\"Можливо\",\"Імовірно\",\"Майже напевно\"}, 0), 1,2,3,4,5),\n  _xlpm.l, CHOOSE(MATCH(E26, {\"Незначний\",\"Мінімальний\",\"Помірний\",\"Значний\",\"Серйозний\"}, 0), 1,2,3,4,5),\n  _xlpm.score, _xlpm.i * _xlpm.l,\n  IF(_xlpm.score<=4, \"Мінімальний\",\n     IF(_xlpm.score<=6, \"Помірний\",\n        IF(_xlpm.score<=12, \"Значний\", \"Серйозний\")\n     )\n  )\n)","v":{"$error":"#N/A"}},""]
["","","",null,null,{"$f":"_xlfn.LET(\n  _xlpm.i, CHOOSE(MATCH(D27, {\"Рідко\",\"Малоймовірно\",\"Можливо\",\"Імовірно\",\"Майже напевно\"}, 0), 1,2,3,4,5),\n  _xlpm.l, CHOOSE(MATCH(E27, {\"Незначний\",\"Мінімальний\",\"Помірний\",\"Значний\",\"Серйозний\"}, 0), 1,2,3,4,5),\n  _xlpm.score, _xlpm.i * _xlpm.l,\n  IF(_xlpm.score<=4, \"Мінімальний\",\n     IF(_xlpm.score<=6, \"Помірний\",\n        IF(_xlpm.score<=12, \"Значний\", \"Серйозний\")\n     )\n  )\n)","v":{"$error":"#N/A"}},""]
["","","",null,null,{"$f":"_xlfn.LET(\n  _xlpm.i, CHOOSE(MATCH(D28, {\"Рідко\",\"Малоймовірно\",\"Можливо\",\"Імовірно\",\"Майже напевно\"}, 0), 1,2,3,4,5),\n  _xlpm.l, CHOOSE(MATCH(E28, {\"Незначний\",\"Мінімальний\",\"Помірний\",\"Значний\",\"Серйозний\"}, 0), 1,2,3,4,5),\n  _xlpm.score, _xlpm.i * _xlpm.l,\n  IF(_xlpm.score<=4, \"Мінімальний\",\n     IF(_xlpm.score<=6, \"Помірний\",\n        IF(_xlpm.score<=12, \"Значний\", \"Серйозний\")\n     )\n  )\n)","v":{"$error":"#N/A"}},""]
["","","",null,null,{"$f":"_xlfn.LET(\n  _xlpm.i, CHOOSE(MATCH(D29, {\"Рідко\",\"Малоймовірно\",\"Можливо\",\"Імовірно\",\"Майже напевно\"}, 0), 1,2,3,4,5),\n  _xlpm.l, CHOOSE(MATCH(E29, {\"Незначний\",\"Мінімальний\",\"Помірний\",\"Значний\",\"Серйозний\"}, 0), 1,2,3,4,5),\n  _xlpm.score, _xlpm.i * _xlpm.l,\n  IF(_xlpm.score<=4, \"Мінімальний\",\n     IF(_xlpm.score<=6, \"Помірний\",\n        IF(_xlpm.score<=12, \"Значний\", \"Серйозний\")\n     )\n  )\n)","v":{"$error":"#N/A"}},""]
["","","",null,null,{"$f":"_xlfn.LET(\n  _xlpm.i, CHOOSE(MATCH(D30, {\"Рідко\",\"Малоймовірно\",\"Можливо\",\"Імовірно\",\"Майже напевно\"}, 0), 1,2,3,4,5),\n  _xlpm.l, CHOOSE(MATCH(E30, {\"Незначний\",\"Мінімальний\",\"Помірний\",\"Значний\",\"Серйозний\"}, 0), 1,2,3,4,5),\n  _xlpm.score, _xlpm.i * _xlpm.l,\n  IF(_xlpm.score<=4, \"Мінімальний\",\n     IF(_xlpm.score<=6, \"Помірний\",\n        IF(_xlpm.score<=12, \"Значний\", \"Серйозний\")\n     )\n  )\n)","v":{"$error":"#N/A"}},""]
["","","",null,null,{"$f":"_xlfn.LET(\n  _xlpm.i, CHOOSE(MATCH(D31, {\"Рідко\",\"Малоймовірно\",\"Можливо\",\"Імовірно\",\"Майже напевно\"}, 0), 1,2,3,4,5),\n  _xlpm.l, CHOOSE(MATCH(E31, {\"Незначний\",\"Мінімальний\",\"Помірний\",\"Значний\",\"Серйозний\"}, 0), 1,2,3,4,5),\n  _xlpm.score, _xlpm.i * _xlpm.l,\n  IF(_xlpm.score<=4, \"Мінімальний\",\n     IF(_xlpm.score<=6, \"Помірний\",\n        IF(_xlpm.score<=12, \"Значний\", \"Серйозний\")\n     )\n  )\n)","v":{"$error":"#N/A"}},""]
["","","",null,null,{"$f":"_xlfn.LET(\n  _xlpm.i, CHOOSE(MATCH(D32, {\"Рідко\",\"Малоймовірно\",\"Можливо\",\"Імовірно\",\"Майже напевно\"}, 0), 1,2,3,4,5),\n  _xlpm.l, CHOOSE(MATCH(E32, {\"Незначний\",\"Мінімальний\",\"Помірний\",\"Значний\",\"Серйозний\"}, 0), 1,2,3,4,5),\n  _xlpm.score, _xlpm.i * _xlpm.l,\n  IF(_xlpm.score<=4, \"Мінімальний\",\n     IF(_xlpm.score<=6, \"Помірний\",\n        IF(_xlpm.score<=12, \"Значний\", \"Серйозний\")\n     )\n  )\n)","v":{"$error":"#N/A"}},""]
["","","",null,null,{"$f":"_xlfn.LET(\n  _xlpm.i, CHOOSE(MATCH(D33, {\"Рідко\",\"Малоймовірно\",\"Можливо\",\"Імовірно\",\"Майже напевно\"}, 0), 1,2,3,4,5),\n  _xlpm.l, CHOOSE(MATCH(E33, {\"Незначний\",\"Мінімальний\",\"Помірний\",\"Значний\",\"Серйозний\"}, 0), 1,2,3,4,5),\n  _xlpm.score, _xlpm.i * _xlpm.l,\n  IF(_xlpm.score<=4, \"Мінімальний\",\n     IF(_xlpm.score<=6, \"Помірний\",\n        IF(_xlpm.score<=12, \"Значний\", \"Серйозний\")\n     )\n  )\n)","v":{"$error":"#N/A"}},""]
["","","",null,null,{"$f":"_xlfn.LET(\n  _xlpm.i, CHOOSE(MATCH(D34, {\"Рідко\",\"Малоймовірно\",\"Можливо\",\"Імовірно\",\"Майже напевно\"}, 0), 1,2,3,4,5),\n  _xlpm.l, CHOOSE(MATCH(E34, {\"Незначний\",\"Мінімальний\",\"Помірний\",\"Значний\",\"Серйозний\"}, 0), 1,2,3,4,5),\n  _xlpm.score, _xlpm.i * _xlpm.l,\n  IF(_xlpm.score<=4, \"Мінімальний\",\n     IF(_xlpm.score<=6, \"Помірний\",\n        IF(_xlpm.score<=12, \"Значний\", \"Серйозний\")\n     )\n  )\n)","v":{"$error":"#N/A"}},""]
["","","",null,null,{"$f":"_xlfn.LET(\n  _xlpm.i, CHOOSE(MATCH(D35, {\"Рідко\",\"Малоймовірно\",\"Можливо\",\"Імовірно\",\"Майже напевно\"}, 0), 1,2,3,4,5),\n  _xlpm.l, CHOOSE(MATCH(E35, {\"Незначний\",\"Мінімальний\",\"Помірний\",\"Значний\",\"Серйозний\"}, 0), 1,2,3,4,5),\n  _xlpm.score, _xlpm.i * _xlpm.l,\n  IF(_xlpm.score<=4, \"Мінімальний\",\n     IF(_xlpm.score<=6, \"Помірний\",\n        IF(_xlpm.score<=12, \"Значний\", \"Серйозний\")\n     )\n  )\n)","v":{"$error":"#N/A"}},""]
["","","",null,null,{"$f":"_xlfn.LET(\n  _xlpm.i, CHOOSE(MATCH(D36, {\"Рідко\",\"Малоймовірно\",\"Можливо\",\"Імовірно\",\"Майже напевно\"}, 0), 1,2,3,4,5),\n  _xlpm.l, CHOOSE(MATCH(E36, {\"Незначний\",\"Мінімальний\",\"Помірний\",\"Значний\",\"Серйозний\"}, 0), 1,2,3,4,5),\n  _xlpm.score, _xlpm.i * _xlpm.l,\n  IF(_xlpm.score<=4, \"Мінімальний\",\n     IF(_xlpm.score<=6, \"Помірний\",\n        IF(_xlpm.score<=12, \"Значний\", \"Серйозний\")\n     )\n  )\n)","v":{"$error":"#N/A"}},""]
["","","",null,null,{"$f":"_xlfn.LET(\n  _xlpm.i, CHOOSE(MATCH(D37, {\"Рідко\",\"Малоймовірно\",\"Можливо\",\"Імовірно\",\"Майже напевно\"}, 0), 1,2,3,4,5),\n  _xlpm.l, CHOOSE(MATCH(E37, {\"Незначний\",\"Мінімальний\",\"Помірний\",\"Значний\",\"Серйозний\"}, 0), 1,2,3,4,5),\n  _xlpm.score, _xlpm.i * _xlpm.l,\n  IF(_xlpm.score<=4, \"Мінімальний\",\n     IF(_xlpm.score<=6, \"Помірний\",\n        IF(_xlpm.score<=12, \"Значний\", \"Серйозний\")\n     )\n  )\n)","v":{"$error":"#N/A"}},""]
["","","",null,null,{"$f":"_xlfn.LET(\n  _xlpm.i, CHOOSE(MATCH(D38, {\"Рідко\",\"Малоймовірно\",\"Можливо\",\"Імовірно\",\"Майже напевно\"}, 0), 1,2,3,4,5),\n  _xlpm.l, CHOOSE(MATCH(E38, {\"Незначний\",\"Мінімальний\",\"Помірний\",\"Значний\",\"Серйозний\"}, 0), 1,2,3,4,5),\n  _xlpm.score, _xlpm.i * _xlpm.l,\n  IF(_xlpm.score<=4, \"Мінімальний\",\n     IF(_xlpm.score<=6, \"Помірний\",\n        IF(_xlpm.score<=12, \"Значний\", \"Серйозний\")\n     )\n  )\n)","v":{"$error":"#N/A"}},""]
["","","",null,null,{"$f":"_xlfn.LET(\n  _xlpm.i, CHOOSE(MATCH(D39, {\"Рідко\",\"Малоймовірно\",\"Можливо\",\"Імовірно\",\"Майже напевно\"}, 0), 1,2,3,4,5),\n  _xlpm.l, CHOOSE(MATCH(E39, {\"Незначний\",\"Мінімальний\",\"Помірний\",\"Значний\",\"Серйозний\"}, 0), 1,2,3,4,5),\n  _xlpm.score, _xlpm.i * _xlpm.l,\n  IF(_xlpm.score<=4, \"Мінімальний\",\n     IF(_xlpm.score<=6, \"Помірний\",\n        IF(_xlpm.score<=12, \"Значний\", \"Серйозний\")\n     )\n  )\n)","v":{"$error":"#N/A"}},""]
["","","",null,null,{"$f":"_xlfn.LET(\n  _xlpm.i, CHOOSE(MATCH(D40, {\"Рідко\",\"Малоймовірно\",\"Можливо\",\"Імовірно\",\"Майже напевно\"}, 0), 1,2,3,4,5),\n  _xlpm.l, CHOOSE(MATCH(E40, {\"Незначний\",\"Мінімальний\",\"Помірний\",\"Значний\",\"Серйозний\"}, 0), 1,2,3,4,5),\n  _xlpm.score, _xlpm.i * _xlpm.l,\n  IF(_xlpm.score<=4, \"Мінімальний\",\n     IF(_xlpm.score<=6, \"Помірний\",\n        IF(_xlpm.score<=12, \"Значний\", \"Серйозний\")\n     )\n  )\n)","v":{"$error":"#N/A"}},""]
["","","",null,null,{"$f":"_xlfn.LET(\n  _xlpm.i, CHOOSE(MATCH(D41, {\"Рідко\",\"Малоймовірно\",\"Можливо\",\"Імовірно\",\"Майже напевно\"}, 0), 1,2,3,4,5),\n  _xlpm.l, CHOOSE(MATCH(E41, {\"Незначний\",\"Мінімальний\",\"Помірний\",\"Значний\",\"Серйозний\"}, 0), 1,2,3,4,5),\n  _xlpm.score, _xlpm.i * _xlpm.l,\n  IF(_xlpm.score<=4, \"Мінімальний\",\n     IF(_xlpm.score<=6, \"Помірний\",\n        IF(_xlpm.score<=12, \"Значний\", \"Серйозний\")\n     )\n  )\n)","v":{"$error":"#N/A"}},""]
["","","",null,null,{"$f":"_xlfn.LET(\n  _xlpm.i, CHOOSE(MATCH(D42, {\"Рідко\",\"Малоймовірно\",\"Можливо\",\"Імовірно\",\"Майже напевно\"}, 0), 1,2,3,4,5),\n  _xlpm.l, CHOOSE(MATCH(E42, {\"Незначний\",\"Мінімальний\",\"Помірний\",\"Значний\",\"Серйозний\"}, 0), 1,2,3,4,5),\n  _xlpm.score, _xlpm.i * _xlpm.l,\n  IF(_xlpm.score<=4, \"Мінімальний\",\n     IF(_xlpm.score<=6, \"Помірний\",\n        IF(_xlpm.score<=12, \"Значний\", \"Серйозний\")\n     )\n  )\n)","v":{"$error":"#N/A"}},""]
["","","",null,null,{"$f":"_xlfn.LET(\n  _xlpm.i, CHOOSE(MATCH(D43, {\"Рідко\",\"Малоймовірно\",\"Можливо\",\"Імовірно\",\"Майже напевно\"}, 0), 1,2,3,4,5),\n  _xlpm.l, CHOOSE(MATCH(E43, {\"Незначний\",\"Мінімальний\",\"Помірний\",\"Значний\",\"Серйозний\"}, 0), 1,2,3,4,5),\n  _xlpm.score, _xlpm.i * _xlpm.l,\n  IF(_xlpm.score<=4, \"Мінімальний\",\n     IF(_xlpm.score<=6, \"Помірний\",\n        IF(_xlpm.score<=12, \"Значний\", \"Серйозний\")\n     )\n  )\n)","v":{"$error":"#N/A"}},""]
["","","",null,null,{"$f":"_xlfn.LET(\n  _xlpm.i, CHOOSE(MATCH(D44, {\"Рідко\",\"Малоймовірно\",\"Можливо\",\"Імовірно\",\"Майже напевно\"}, 0), 1,2,3,4,5),\n  _xlpm.l, CHOOSE(MATCH(E44, {\"Незначний\",\"Мінімальний\",\"Помірний\",\"Значний\",\"Серйозний\"}, 0), 1,2,3,4,5),\n  _xlpm.score, _xlpm.i * _xlpm.l,\n  IF(_xlpm.score<=4, \"Мінімальний\",\n     IF(_xlpm.score<=6, \"Помірний\",\n        IF(_xlpm.score<=12, \"Значний\", \"Серйозний\")\n     )\n  )\n)","v":{"$error":"#N/A"}},""]
["","","",null,null,{"$f":"_xlfn.LET(\n  _xlpm.i, CHOOSE(MATCH(D45, {\"Рідко\",\"Малоймовірно\",\"Можливо\",\"Імовірно\",\"Майже напевно\"}, 0), 1,2,3,4,5),\n  _xlpm.l, CHOOSE(MATCH(E45, {\"Незначний\",\"Мінімальний\",\"Помірний\",\"Значний\",\"Серйозний\"}, 0), 1,2,3,4,5),\n  _xlpm.score, _xlpm.i * _xlpm.l,\n  IF(_xlpm.score<=4, \"Мінімальний\",\n     IF(_xlpm.score<=6, \"Помірний\",\n        IF(_xlpm.score<=12, \"Значний\", \"Серйозний\")\n     )\n  )\n)","v":{"$error":"#N/A"}},""]
["","","",null,null,{"$f":"_xlfn.LET(\n  _xlpm.i, CHOOSE(MATCH(D46, {\"Рідко\",\"Малоймовірно\",\"Можливо\",\"Імовірно\",\"Майже напевно\"}, 0), 1,2,3,4,5),\n  _xlpm.l, CHOOSE(MATCH(E46, {\"Незначний\",\"Мінімальний\",\"Помірний\",\"Значний\",\"Серйозний\"}, 0), 1,2,3,4,5),\n  _xlpm.score, _xlpm.i * _xlpm.l,\n  IF(_xlpm.score<=4, \"Мінімальний\",\n     IF(_xlpm.score<=6, \"Помірний\",\n        IF(_xlpm.score<=12, \"Значний\", \"Серйозний\")\n     )\n  )\n)","v":{"$error":"#N/A"}},""]
["","","",null,null,{"$f":"_xlfn.LET(\n  _xlpm.i, CHOOSE(MATCH(D47, {\"Рідко\",\"Малоймовірно\",\"Можливо\",\"Імовірно\",\"Майже напевно\"}, 0), 1,2,3,4,5),\n  _xlpm.l, CHOOSE(MATCH(E47, {\"Незначний\",\"Мінімальний\",\"Помірний\",\"Значний\",\"Серйозний\"}, 0), 1,2,3,4,5),\n  _xlpm.score, _xlpm.i * _xlpm.l,\n  IF(_xlpm.score<=4, \"Мінімальний\",\n     IF(_xlpm.score<=6, \"Помірний\",\n        IF(_xlpm.score<=12, \"Значний\", \"Серйозний\")\n     )\n  )\n)","v":{"$error":"#N/A"}},""]
["","","",null,null,{"$f":"_xlfn.LET(\n  _xlpm.i, CHOOSE(MATCH(D48, {\"Рідко\",\"Малоймовірно\",\"Можливо\",\"Імовірно\",\"Майже напевно\"}, 0), 1,2,3,4,5),\n  _xlpm.l, CHOOSE(MATCH(E48, {\"Незначний\",\"Мінімальний\",\"Помірний\",\"Значний\",\"Серйозний\"}, 0), 1,2,3,4,5),\n  _xlpm.score, _xlpm.i * _xlpm.l,\n  IF(_xlpm.score<=4, \"Мінімальний\",\n     IF(_xlpm.score<=6, \"Помірний\",\n        IF(_xlpm.score<=12, \"Значний\", \"Серйозний\")\n     )\n  )\n)","v":{"$error":"#N/A"}},""]
["","","",null,null,{"$f":"_xlfn.LET(\n  _xlpm.i, CHOOSE(MATCH(D49, {\"Рідко\",\"Малоймовірно\",\"Можливо\",\"Імовірно\",\"Майже напевно\"}, 0), 1,2,3,4,5),\n  _xlpm.l, CHOOSE(MATCH(E49, {\"Незначний\",\"Мінімальний\",\"Помірний\",\"Значний\",\"Серйозний\"}, 0), 1,2,3,4,5),\n  _xlpm.score, _xlpm.i * _xlpm.l,\n  IF(_xlpm.score<=4, \"Мінімальний\",\n     IF(_xlpm.score<=6, \"Помірний\",\n        IF(_xlpm.score<=12, \"Значний\", \"Серйозний\")\n     )\n  )\n)","v":{"$error":"#N/A"}},""]